bitfinex-derivatives/quotes_ETHF0:USTF0_20260213
["timestamp","ask_amount","ask_price","bid_price","bid_amount"]
[1770992097193,2.32871288,1964.2,1963.7,2.33151098]
[1770992099292,2.32871288,1964.2,1963.6,2.33151098]
[1770992101389,43.91186492,1964.3,1963.8,2.94079552]
[1770992101591,40.8,1964.3,1963.8,2.94079552]
[1770992101889,40.8,1964.3,1964.0,2.94079552]
[1770992102300,3.11763079,1964.6,1964.0,2.94079552]
[1770992102792,43.91763079,1964.6,1964.0,2.94079552]
[1770992102993,3.11186492,1964.5,1964.0,2.94079552]
[1770992103387,40.80576587,1964.6,1964.2,2.94079552]
[1770992103699,40.80576587,1964.6,1964.3,2.94079552]
[1770992104199,3.11186492,1964.9,1964.3,2.94079552]
[1770992104393,3.11186492,1964.9,1964.2,6.374]
[1770992104794,3.11186492,1964.9,1964.3,2.94079552]
[1770992105097,40.8,1964.8,1964.3,2.94079552]
[1770992105296,3.11186492,1964.7,1964.3,2.94079552]
[1770992105496,3.11186492,1964.7,1964.2,9.31479552]
[1770992105697,3.11186492,1964.7,1964.3,2.94079552]
[1770992107002,43.91186492,1964.8,1964.3,2.94079552]
[1770992107405,3.11186492,1964.7,1964.2,9.31479552]
[1770992108406,3.11186492,1964.7,1964.2,6.374]
[1770992109002,43.91186492,1964.8,1964.3,2.94079552]
[1770992109204,40.8,1964.8,1964.3,2.94079552]
[1770992109702,40.8,1964.8,1964.5,2.94079552]
[1770992110297,3.11186492,1964.7,1964.5,6.385]
[1770992110503,3.11186492,1964.7,1964.2,6.385]
[1770992110806,3.11186492,1964.7,1964.2,9.32579552]
[1770992111703,3.11186492,1964.7,1964.2,6.385]
[1770992112611,43.91186492,1964.8,1964.3,2.94079552]
[1770992113007,40.8,1964.8,1964.3,2.94079552]
[1770992113208,40.8,1964.8,1964.5,2.94079552]
[1770992114309,3.11828185,1964.9,1964.5,2.94079552]
[1770992114509,6.93e-06,1964.9,1964.7,2.94079552]
[1770992114704,3.11187185,1964.9,1964.3,2.94079552]
[1770992114908,3.11186492,1964.8,1964.3,2.94079552]
[1770992115313,3.11186492,1964.8,1964.5,2.94079552]
[1770992115508,43.91187185,1964.9,1964.5,2.94527595]
[1770992116212,3.11186492,1964.8,1964.5,0.00448043]
[1770992116412,40.80000693,1964.9,1964.5,2.94527595]
[1770992116413,43.91187185,1964.9,1964.5,2.94527595]
[1770992116818,6.93e-06,1964.9,1964.7,2.94079552]
[1770992117018,3.11186492,1965.3,1964.7,2.94079552]
[1770992117517,3.11186492,1965.1,1964.6,3.19548552]
[1770992117819,3.11186492,1965.1,1964.7,6.397]
[1770992118024,3.11564592,1965.1,1964.7,6.397]
[1770992118916,3.11564592,1965.1,1964.7,9.33779552]
[1770992119219,0.003781,1965.1,1964.8,2.94079552]
[1770992119719,3.11564592,1965.1,1964.8,2.94079552]
[1770992120119,0.003781,1965.1,1964.8,2.94079552]
[1770992125818,3.11186492,1965.5,1964.8,3.19545552]
[1770992126925,43.91186492,1965.4,1964.8,3.593011]
[1770992127428,43.91186492,1965.4,1964.8,3.19545552]
[1770992130928,40.8,1965.4,1964.8,3.19545552]
[1770992131129,43.83184789,1965.4,1964.8,3.19545552]
[1770992131628,3.03184789,1965.3,1964.8,3.19545552]
[1770992132324,40.8,1965.2,1964.8,3.19545552]
[1770992132628,3.03184789,1965.1,1964.8,3.19545552]
[1770992132829,40.28539,1965.2,1964.8,3.19545552]
[1770992133030,3.03184789,1965.4,1964.8,3.19545552]
[1770992133929,43.83184789,1965.3,1964.8,3.19545552]
[1770992134330,3.03622942,1965.5,1965.2,3.24459133]
[1770992134628,3.03622942,1965.5,1965.2,9.70759133]
[1770992134827,40.8,1965.4,1965.2,9.70759133]
[1770992135226,3.03184789,1966.0,1965.3,3.49919133]
[1770992136227,3.03184789,1965.8,1965.3,3.49919133]
[1770992136632,3.03184789,1965.8,1965.3,0.2546]
[1770992137732,3.03184789,1965.8,1965.3,4.40908064]
[1770992140632,40.8,1965.9,1965.3,4.40908064]
[1770992143640,0.0038488,1966.0,1965.3,4.40908064]
[1770992144034,44.76718047,1966.0,1965.3,4.40908064]
[1770992144736,0.0038488,1966.0,1965.7,4.15448064]
[1770992144930,0.0038488,1966.0,1965.9,4.15448064]
[1770992145131,0.0038488,1966.0,1965.9,0.00589739]
[1770992145328,3.96718047,1966.0,1965.8,6.517]
[1770992145543,0.0038488,1966.0,1965.8,10.67148064]
[1770992145733,3.96718047,1966.0,1965.8,6.517]
[1770992145928,3.96718047,1966.0,1965.8,10.67148064]
[1770992146135,0.0038488,1966.0,1965.8,10.67148064]
[1770992146436,0.0038488,1966.0,1965.8,10.6769221]
[1770992147139,3.96718047,1966.0,1965.8,6.52244146]
[1770992147945,3.96718047,1966.0,1965.8,1.07385275]
[1770992148242,3.96718047,1966.0,1965.7,2.27285676]
[1770992148639,0.0038488,1966.0,1965.8,4.15448064]
[1770992149135,0.0038488,1966.0,1965.8,4.15894984]
[1770992151248,3.96333167,1966.2,1965.8,4.15894984]
[1770992152246,40.8,1966.1,1965.8,4.15894984]
[1770992152439,44.76333167,1966.1,1965.8,4.15894984]
[1770992152640,40.8,1966.1,1965.8,4.15894984]
[1770992152841,29.076,1966.7,1965.8,4.41346984]
[1770992152842,3.96333167,1966.5,1965.8,4.41346984]
[1770992153947,40.8,1966.4,1965.8,4.41346984]
[1770992155649,3.96333167,1966.9,1965.8,4.41346984]
[1770992156141,3.96333167,1966.7,1965.8,4.41346984]
[1770992156639,3.9693071,1966.7,1965.8,4.41346984]
[1770992157341,3.9693071,1966.7,1966.0,4.15448064]
[1770992161152,3.9693071,1966.7,1966.1,0.2545]
[1770992161354,3.9693071,1966.7,1966.2,3.99969714]
[1770992161851,44.81048751,1966.6,1966.2,3.99969714]
[1770992162152,40.8,1966.6,1966.2,3.99969714]
[1770992162342,44.81048751,1966.6,1966.2,3.99969714]
[1770992163250,40.8,1966.6,1966.2,3.99969714]
[1770992163853,44.81048751,1966.6,1966.2,3.99969714]
[1770992164048,40.8,1966.6,1966.2,3.99969714]
[1770992166453,0.00597543,1966.7,1966.2,3.99969714]
[1770992167352,40.80597543,1966.7,1966.2,3.99969714]
[1770992167754,0.00597543,1966.7,1966.2,3.99969714]
[1770992167955,0.00597543,1966.7,1966.4,3.99969714]
[1770992168153,4.01048751,1967.0,1966.6,3.99969714]
[1770992168352,4.01048751,1966.8,1966.5,10.56969714]
[1770992168558,4.01048751,1966.8,1966.2,3.99969714]
[1770992168855,4.01048751,1966.8,1966.1,10.57369714]
[1770992169254,4.01494786,1966.8,1966.1,10.57369714]
[1770992169949,4.01494786,1966.8,1966.1,6.574]
[1770992170752,4.01494786,1966.8,1965.9,0.25452]
[1770992170952,4.01494786,1966.8,1966.0,6.582]
[1770992171356,4.01494786,1966.8,1966.1,3.99969714]
[1770992171558,4.01494786,1966.8,1966.0,6.582]
[1770992171750,4.01494786,1966.8,1965.6,16.71632366]
[1770992171955,4.01048751,1966.4,1965.3,3.99969714]
[1770992172149,4.01048751,1966.4,1965.5,3.99969714]
[1770992172960,4.01048751,1966.4,1965.5,4.00408723]
[1770992173261,4.01048751,1966.4,1965.5,0.00439009]
[1770992173458,4.01048751,1966.4,1965.6,3.99969714]
[1770992173864,44.81048751,1966.3,1965.6,3.99969714]
[1770992174265,44.81048751,1966.3,1965.7,0.25455]
[1770992174266,40.8,1966.3,1965.7,0.25455]
[1770992174562,3.97065324,1966.7,1966.0,3.99969714]
[1770992174762,3.97065324,1966.7,1966.2,3.99969714]
[1770992174957,40.8,1966.6,1966.2,3.99969714]
[1770992175163,3.96666927,1966.5,1966.2,3.99969714]
[1770992175363,3.93245294,1966.5,1966.2,3.99969714]
[1770992175564,3.93245294,1966.5,1966.1,10.58369714]
[1770992175766,44.73245294,1966.6,1966.2,3.99969714]
[1770992175963,3.93245294,1966.5,1966.2,3.99969714]
[1770992176170,3.93245294,1966.5,1966.3,6.59]
[1770992176370,3.93245294,1966.5,1966.3,2.62114408]
[1770992176570,3.93245294,1966.5,1966.1,6.592]
[1770992177671,3.93245294,1966.5,1966.1,6.595]
[1770992177867,3.93245294,1966.5,1966.1,10.59599111]
[1770992178168,40.8,1966.6,1966.2,4.00099111]
[1770992179277,40.8,1966.6,1965.8,4.30137761]
[1770992179470,40.8,1966.6,1965.9,10.90037761]
[1770992179770,40.8,1966.6,1966.0,4.30137761]
[1770992180870,40.8,1966.6,1966.1,6.604]
[1770992181875,40.8,1966.6,1966.0,4.30137761]
[1770992182176,40.8,1966.6,1966.1,10.84291923]
[1770992182570,40.8,1966.6,1965.7,4.23491923]
[1770992182773,40.8,1966.6,1965.9,4.23491923]
[1770992183380,40.8,1966.6,1966.0,6.61]
[1770992183873,40.8,1966.6,1966.1,4.23607319]
[1770992184782,40.8,1966.6,1966.2,6.614]
[1770992185277,40.8,1966.6,1966.3,4.22292232]
[1770992187282,40.8,1966.6,1966.2,4.06517845]
[1770992187488,40.8,1966.6,1966.3,10.68817845]
[1770992188284,40.8,1966.6,1966.3,6.623]
[1770992188477,40.8,1966.6,1966.1,4.04807539]
[1770992188679,40.8,1966.6,1966.4,5.50600002]
[1770992189880,40.8,1966.6,1966.1,4.04807539]
[1770992190087,40.8,1966.6,1966.2,6.63]
[1770992190580,40.8,1966.6,1966.2,10.68290987]
[1770992190785,40.8,1966.6,1966.3,4.05290987]
[1770992191087,0.00446035,1967.6,1967.1,3.83376536]
[1770992191280,0.30286667,1968.3,1967.2,10.47676536]
[1770992191482,0.30286667,1968.1,1967.2,10.47676536]
[1770992191876,0.30660682,1968.1,1967.2,10.48228017]
[1770992192780,0.30660682,1968.1,1967.3,3.79674321]
[1770992193180,0.30660682,1968.1,1967.2,6.64851481]
[1770992193381,0.30660682,1968.1,1967.2,10.4473295]
[1770992193976,0.30660682,1968.1,1967.3,6.653]
[1770992194581,0.30660682,1968.1,1967.3,6.652]
[1770992194779,0.30660682,1968.1,1967.2,0.00551481]
[1770992195185,0.07731581,1968.2,1967.3,4.1325166]
[1770992196187,0.53774894,1968.0,1967.3,4.1325166]
[1770992196390,0.53774894,1968.0,1967.4,10.5422538]
[1770992196584,0.53774894,1968.0,1967.5,3.8862538]
[1770992198791,0.53774894,1968.0,1967.6,3.8862538]
[1770992198992,0.53774894,1968.0,1967.5,10.5502538]
[1770992199283,0.53774894,1968.0,1967.2,0.41412963]
[1770992199284,0.53774894,1968.0,1967.3,3.8862538]
[1770992199488,0.53774894,1968.0,1967.3,6.665]
[1770992199685,0.53774894,1968.0,1967.4,3.8862538]
[1770992201386,0.52953084,1968.2,1967.4,3.8862538]
[1770992201788,40.8,1968.1,1967.4,3.8862538]
[1770992202192,41.6911731,1968.1,1967.4,3.8862538]
[1770992202489,0.8911731,1968.0,1967.4,3.8862538]
[1770992202691,0.8911731,1968.0,1967.4,10.5562538]
[1770992202996,0.8911731,1968.0,1967.5,3.8862538]
[1770992204094,0.8911731,1968.0,1967.4,6.671]
[1770992204294,0.8911731,1968.0,1967.5,3.8862538]
[1770992205692,0.8911731,1968.0,1967.3,10.5722538]
[1770992206194,0.8911731,1968.0,1967.2,0.00551481]
[1770992206394,0.8911731,1968.0,1967.2,3.89176861]
[1770992207192,0.7738659,1967.8,1967.2,3.89176861]
[1770992214192,41.54321446,1967.9,1967.2,3.89176861]
[1770992214799,0.74321446,1967.8,1967.2,3.89176861]
[1770992216101,41.53294528,1967.9,1967.2,3.89176861]
[1770992216297,40.8,1967.9,1967.4,3.8862538]
[1770992217604,0.00521169,1968.2,1967.6,3.8862538]
[1770992217901,3.78180904,1968.2,1967.6,3.8862538]
[1770992218601,44.57659735,1968.1,1967.7,3.8862538]
[1770992219498,40.8,1968.1,1967.7,3.8862538]
[1770992219704,44.57659735,1968.1,1967.7,3.8862538]
[1770992219894,40.8,1968.1,1967.7,3.8862538]
[1770992220102,0.00521169,1968.2,1967.7,3.8862538]
[1770992220798,3.77659735,1968.3,1967.7,3.8862538]
[1770992221306,40.8,1968.2,1967.7,3.8862538]
[1770992221698,40.80361557,1968.2,1967.7,3.8862538]
[1770992222701,44.92118104,1968.2,1967.7,3.8862538]
[1770992223901,4.11756547,1968.5,1967.7,3.8862538]
[1770992224904,4.27593041,1968.3,1967.7,3.8862538]
[1770992226100,4.27593041,1968.3,1967.8,6.87124635]
[1770992226301,45.06093881,1968.4,1967.9,0.16324635]
[1770992226500,4.26093881,1968.3,1967.9,0.16324635]
[1770992227505,4.26093881,1968.3,1967.6,0.14663473]
[1770992227705,4.26093881,1968.3,1967.8,6.732]
[1770992228399,4.26093881,1968.3,1967.7,0.08748143]
[1770992228595,4.26093881,1968.3,1967.8,6.734]
[1770992229305,4.26093881,1968.3,1967.7,0.08748143]
[1770992229507,4.26093881,1968.3,1967.8,6.738]
[1770992230605,4.26093881,1968.3,1967.7,0.08748143]
[1770992230805,4.26093881,1968.3,1967.7,6.82448143]
[1770992231607,4.26093881,1968.3,1967.8,0.01285671]
[1770992235710,4.26093881,1968.3,1967.7,6.744]
[1770992237107,4.26093881,1968.3,1967.5,0.25432]
[1770992237404,4.26093881,1968.3,1967.6,6.748]
[1770992238108,4.26093881,1968.3,1967.5,0.25432]
[1770992238312,4.26093881,1968.3,1967.5,7.00032]
[1770992244921,40.8,1968.4,1967.8,0.25427]
[1770992246224,45.1219274,1968.4,1967.8,0.25427]
[1770992246525,4.3219274,1968.3,1967.8,0.25427]
[1770992246726,40.8,1968.4,1967.8,0.25427]
[1770992247222,45.1203058,1968.4,1967.8,7.85139904]
[1770992247425,40.8,1968.4,1967.8,7.85139904]
[1770992248326,40.8,1968.4,1967.9,7.59712904]
[1770992248524,40.8,1968.4,1968.0,6.785]
[1770992248822,4.32059272,1968.9,1968.1,7.85136904]
[1770992249130,4.32059272,1968.9,1968.2,7.59712904]
[1770992249334,45.11898158,1968.8,1968.2,7.59712904]
[1770992249827,45.12269001,1968.8,1968.2,7.59712904]
[1770992250133,4.26113137,1969.6,1968.6,0.25416]
[1770992250326,4.26113137,1969.6,1968.7,6.794]
[1770992251031,10.12977643,1970.2,1968.8,0.25415]
[1770992251032,45.05920829,1969.5,1968.8,0.25415]
[1770992251234,45.05920829,1969.5,1968.9,1.08669607]
[1770992251728,45.05920829,1969.5,1968.8,0.25415]
[1770992251729,40.8,1969.5,1969.1,1.08669607]
[1770992251928,40.8,1969.5,1968.8,7.59712904]
[1770992251929,4.25920829,1969.4,1968.9,1.08669607]
[1770992252235,4.25920829,1969.4,1969.1,6.794]
[1770992252429,4.25920829,1969.4,1969.0,6.798]
[1770992253034,4.25920829,1969.4,1969.1,1.18345019]
[1770992253432,4.25920829,1969.4,1969.0,7.95557222]
[1770992254234,4.25920829,1969.4,1969.1,1.19713137]
[1770992255436,4.25920829,1969.4,1969.0,6.798]
[1770992255437,4.25920829,1969.4,1969.0,7.96929686]
[1770992256131,4.25920829,1969.4,1969.1,6.806]
[1770992256534,4.25920829,1969.4,1968.8,1.13172717]
[1770992256732,4.25920829,1969.4,1968.9,6.806]
[1770992256930,4.25920829,1969.4,1969.0,4.67759951]
[1770992259830,40.8,1969.5,1969.0,4.67759951]
[1770992260033,4.45937236,1970.0,1969.2,4.67759951]
[1770992260233,4.45937236,1970.0,1969.4,4.67759951]
[1770992260426,4.45937236,1969.8,1969.4,4.67759951]
[1770992260631,45.25937236,1969.9,1969.4,4.67759951]
[1770992260831,4.45937236,1969.8,1969.4,4.67759951]
[1770992261035,4.46424965,1969.8,1969.4,4.67759951]
[1770992262335,4.46424965,1969.8,1969.4,5.09213337]
[1770992263037,0.00487729,1969.8,1969.4,5.09213337]
[1770992263235,45.25937236,1969.9,1969.4,5.09213337]
[1770992263434,4.45937236,1969.8,1969.5,11.51659951]
[1770992263737,4.45937236,1969.8,1969.4,4.67759951]
[1770992263939,4.45937236,1969.8,1969.5,6.84]
[1770992264232,4.45937236,1969.8,1969.5,6.849]
[1770992264440,4.46340213,1969.8,1969.1,4.93170951]
[1770992264630,4.46340213,1969.8,1969.2,6.849]
[1770992264835,4.46340213,1969.8,1969.3,4.67759951]
[1770992265034,4.46340213,1969.8,1969.3,5.08114778]
[1770992265738,4.46340213,1969.8,1969.4,11.52859951]
[1770992266041,4.46340213,1969.8,1969.5,4.67759951]
[1770992266637,0.00402977,1969.8,1969.5,4.67759951]
[1770992269639,4.46340213,1969.8,1969.5,4.67759951]
[1770992269941,4.46340213,1969.8,1969.4,4.67759951]
[1770992270136,4.46340213,1969.8,1969.6,6.872]
[1770992270641,0.00402977,1969.8,1969.6,11.54959951]
[1770992270845,40.8,1969.9,1969.7,4.67759951]
[1770992271836,40.804678,1969.9,1969.7,4.67759951]
[1770992272037,4.45937236,1970.3,1969.7,4.67759951]
[1770992273045,45.25937236,1970.2,1969.7,4.67759951]
[1770992273242,40.8,1970.2,1969.7,4.67759951]
[1770992273540,0.00657822,1970.3,1969.8,0.25402]
[1770992273739,4.53848007,1970.3,1969.9,6.89]
[1770992274046,4.53848007,1970.3,1970.0,0.03539565]
[1770992274546,45.33848007,1970.3,1970.0,0.03539565]
[1770992275346,0.00657822,1970.3,1970.0,0.03539565]
[1770992275548,4.52975497,1970.7,1970.0,0.03539565]
[1770992276042,45.32975497,1970.6,1970.0,0.03539565]
[1770992276449,45.33510189,1970.6,1970.0,0.03539565]
[1770992277945,40.80534692,1970.6,1970.4,0.25055287]
[1770992278146,40.80534692,1970.6,1970.5,7.14755287]
[1770992278951,40.80534692,1970.6,1970.5,6.897]
[1770992280252,45.26471928,1970.6,1970.5,6.897]
[1770992280448,4.45937236,1970.5,1970.1,0.20935411]
[1770992280649,45.23026688,1970.6,1970.3,0.19932197]
[1770992280849,0.00534692,1970.6,1970.5,0.19932197]
[1770992281054,4.42759342,1971.6,1970.6,0.1986736]
[1770992281250,4.42759342,1971.6,1970.8,0.16367848]
[1770992281443,4.42759342,1971.6,1971.0,0.16367848]
[1770992281643,4.42759342,1971.6,1971.2,0.16367848]
[1770992281946,45.22524414,1971.5,1971.2,0.16367848]
[1770992282251,44.91433681,1971.5,1971.3,1.26940298]
[1770992282651,0.00487545,1971.5,1971.3,5.47714547]
[1770992283149,4.10946136,1971.9,1971.4,4.20774249]
[1770992283550,40.8,1971.8,1971.4,4.20774249]
[1770992283752,4.10946136,1971.7,1971.4,4.20774249]
[1770992284055,4.11575712,1971.7,1971.3,6.928]
[1770992284553,4.11575712,1971.7,1971.3,11.13574249]
[1770992284754,4.11575712,1971.7,1971.2,0.00386442]
[1770992284951,4.11575712,1971.7,1971.2,6.94586442]
[1770992285553,4.11575712,1971.7,1971.2,11.15360691]
[1770992285858,4.11575712,1971.7,1971.3,4.20774249]
[1770992286149,5.76e-06,1971.7,1971.3,4.46156249]
[1770992286551,4.10946712,1971.7,1971.4,11.15374249]
[1770992286944,5.76e-06,1971.7,1971.5,4.20774249]
[1770992287747,3.02542225,1973.1,1971.5,4.20774249]
[1770992287946,4.10946136,1972.9,1971.5,4.20774249]
[1770992288148,4.10946136,1972.9,1971.6,11.16574249]
[1770992288354,4.10946136,1972.9,1971.5,4.20774249]
[1770992288355,4.10946136,1972.7,1971.5,4.20774249]
[1770992288555,4.10946136,1972.7,1971.6,6.961]
[1770992288857,4.11384829,1972.7,1971.6,6.961]
[1770992289060,4.10946136,1972.5,1971.2,0.00386442]
[1770992289258,4.10946136,1972.5,1971.4,4.20774249]
[1770992290354,4.10946136,1972.5,1971.5,6.959]
[1770992290558,4.10946136,1972.5,1971.4,4.20774249]
[1770992290757,4.10946136,1972.5,1971.4,11.16574249]
[1770992291261,4.10946136,1972.5,1971.4,11.16474249]
[1770992291463,4.10946136,1972.2,1971.2,0.25770442]
[1770992292357,4.10946136,1972.2,1971.2,4.46544691]
[1770992292856,0.00438693,1972.7,1971.2,0.00386442]
[1770992292857,4.10946136,1971.9,1971.2,0.00386442]
[1770992293158,4.10946136,1971.9,1971.4,4.20774249]
[1770992294158,4.10946136,1972.6,1971.6,4.20774249]
[1770992294956,4.10946136,1972.6,1971.6,6.966]
[1770992295164,4.10946136,1972.6,1971.4,11.17474249]
[1770992295364,4.10946136,1972.6,1971.5,4.20774249]
[1770992296269,4.10946136,1972.6,1971.4,4.20774249]
[1770992300659,4.10946136,1972.6,1971.3,4.20774249]
[1770992301461,4.10946136,1972.6,1971.4,0.25381]
[1770992301663,4.10946136,1972.6,1971.4,4.46155249]
[1770992302260,4.10946136,1972.4,1971.4,4.46155249]
[1770992303356,4.10946136,1972.4,1971.4,0.25381]
[1770992304861,4.10946136,1972.4,1971.3,4.20774249]
[1770992305964,4.10946136,1972.2,1971.2,0.00386442]
[1770992306164,4.10946136,1972.2,1971.2,4.21160691]
[1770992307468,4.10946136,1972.2,1971.4,4.20774249]
[1770992307669,4.10946136,1972.0,1971.4,4.20774249]
[1770992307864,40.8,1972.1,1971.5,0.2538]
[1770992308168,44.90946136,1972.1,1971.6,4.20774249]
[1770992308364,4.10946136,1972.0,1971.6,4.20774249]
[1770992308570,4.10946136,1972.0,1971.5,4.20774249]
[1770992311470,44.88525488,1972.1,1971.5,11.80487153]
[1770992311669,44.88525488,1972.1,1971.6,3.90427202]
[1770992314875,4.08525488,1972.0,1971.5,7.2528]
[1770992315075,4.08525488,1972.0,1971.5,11.15707202]
[1770992315373,4.08525488,1972.0,1971.6,3.90427202]
[1770992317576,4.08525488,1972.0,1971.5,10.84473667]
[1770992317768,4.08525488,1972.0,1971.5,7.025]
[1770992318377,4.08525488,1972.0,1971.5,3.56993667]
[1770992318772,4.08525488,1972.0,1971.4,18.20306571]
[1770992318976,4.08525488,1972.0,1971.4,11.16706571]
[1770992319281,4.08525488,1972.0,1971.2,0.00386442]
[1770992322081,3.65290362,1971.8,1971.2,0.00386442]
[1770992323375,3.65290362,1971.8,1970.8,7.59712904]
[1770992323580,3.65290362,1971.8,1970.7,11.42096571]
[1770992323878,3.65290362,1971.8,1970.7,3.82383667]
[1770992324080,3.65290362,1971.8,1970.7,11.42096571]
[1770992324279,3.65290362,1971.8,1970.7,3.82383667]
[1770992324476,3.65290362,1971.8,1970.7,3.82886169]
[1770992324676,3.65290362,1971.6,1970.7,3.82886169]
[1770992325580,3.65290362,1971.6,1970.7,4.23471982]
[1770992326781,3.65290362,1971.6,1970.8,3.56993667]
[1770992329480,3.65290362,1971.6,1970.9,3.56993667]
[1770992330183,40.8,1971.5,1970.9,3.56993667]
[1770992330386,44.45290362,1971.5,1970.9,3.56993667]
[1770992330884,3.65290362,1971.4,1971.0,3.56993667]
[1770992331384,40.8,1971.5,1971.0,3.56993667]
[1770992331881,3.65290362,1971.4,1971.0,3.56993667]
[1770992332078,44.45290362,1971.5,1971.0,3.56993667]
[1770992332272,3.65290362,1971.4,1971.0,3.56993667]
[1770992332982,40.8,1971.5,1971.0,3.56993667]
[1770992333182,44.45290362,1971.5,1971.0,3.56993667]
[1770992333486,40.8,1971.5,1971.0,3.56993667]
[1770992334482,40.8,1971.5,1971.2,3.56993667]
[1770992336088,3.65290362,1972.0,1971.4,0.00547115]
[1770992336584,3.65290362,1972.0,1971.6,1.67194868]
[1770992339991,3.65290362,1972.0,1971.7,1.2884616]
[1770992341093,3.65290362,1972.0,1971.5,7.078]
[1770992341492,3.65290362,1972.0,1971.6,1.29653459]
[1770992343195,3.65290362,1972.0,1971.4,8.31620746]
[1770992343596,3.65290362,1972.0,1971.5,1.23720746]
[1770992345098,3.65290362,1972.0,1971.4,7.087]
[1770992345295,3.65290362,1972.0,1971.3,9.07262253]
[1770992345495,3.65290362,1972.0,1971.4,7.094]
[1770992346000,3.65290362,1972.0,1971.3,9.07262253]
[1770992346296,3.65290362,1972.0,1971.3,16.17162253]
[1770992347097,3.65290362,1972.0,1971.3,0.25382]
[1770992348690,3.65290362,1972.0,1971.1,7.59712904]
[1770992349394,3.65290362,1972.0,1971.0,8.64387152]
[1770992349798,3.65290362,1972.0,1970.9,0.25387]
[1770992349799,3.65290362,1972.0,1970.9,15.99061374]
[1770992350000,3.65290362,1972.0,1971.1,1.2744647]
[1770992350198,3.65290362,1972.0,1971.5,0.95433116]
[1770992350394,3.65290362,1972.0,1971.4,1.20813116]
[1770992350896,3.65290362,1972.0,1971.4,0.2538]
[1770992352696,3.65290362,1972.0,1971.1,0.95722082]
[1770992352893,3.65290362,1972.0,1971.2,1.21106082]
[1770992353298,3.65290362,1972.0,1971.3,0.93145864]
[1770992354800,3.65290362,1972.0,1971.4,0.25381]
[1770992355000,3.65290362,1972.0,1971.5,0.94431544]
[1770992356101,3.65290362,1972.0,1971.4,1.17243258]
[1770992356401,3.65290362,1972.0,1971.5,0.89175015]
[1770992356795,3.65290362,1972.0,1971.4,0.25381]
[1770992356996,3.65290362,1972.0,1971.3,0.89175015]
[1770992357193,3.65290362,1972.0,1971.2,15.63752684]
[1770992357502,3.65290362,1972.0,1971.2,8.49152684]
[1770992358298,3.65290362,1972.0,1971.2,7.59712904]
[1770992358601,3.65290362,1972.0,1971.2,1.45768529]
[1770992359002,3.65290362,1972.0,1971.4,8.80097433]
[1770992359404,3.65290362,1972.0,1971.2,9.02825306]
[1770992359593,3.65290362,1972.0,1971.2,7.85096904]
[1770992362601,3.65290362,1972.0,1971.2,0.25384]
[1770992364906,5.50663218,1972.0,1971.2,0.25384]
[1770992365109,3.86009865,1971.9,1971.2,0.25384]
[1770992366310,3.86009865,1971.7,1971.2,0.25384]
[1770992366807,3.86009865,1971.7,1971.3,1.01335104]
[1770992367008,3.86009865,1971.7,1971.2,1.26719104]
[1770992368214,3.86009865,1971.7,1971.3,0.96097597]
[1770992369010,3.86009865,1971.7,1971.2,7.85096904]
[1770992369506,3.86009865,1971.7,1971.2,0.93538063]
[1770992369812,3.86009865,1971.7,1971.3,0.93538063]
[1770992372010,3.86009865,1971.7,1971.2,7.59712904]
[1770992372406,3.86009865,1971.7,1971.2,8.54328432]
[1770992372817,3.86009865,1971.7,1971.2,7.59712904]
[1770992374418,3.86009865,1971.7,1971.1,7.59712904]
[1770992375518,3.86009865,1971.7,1971.1,8.46262186]
[1770992375818,3.86009865,1971.7,1971.2,7.59712904]
[1770992376214,3.86009865,1971.7,1971.1,8.46262186]
[1770992376822,3.86009865,1971.7,1971.2,7.59712904]
[1770992377822,3.86009865,1971.7,1971.1,7.59712904]
[1770992378924,3.86009865,1971.7,1971.0,7.59712904]
[1770992379225,3.86009865,1971.7,1970.9,7.59712904]
[1770992380419,3.62746593,1971.5,1970.7,0.00502502]
[1770992380721,3.62746593,1971.5,1970.7,0.74752736]
[1770992381523,3.62746593,1971.5,1970.9,0.71781711]
[1770992383023,3.62746593,1971.5,1970.8,0.85636912]
[1770992384325,3.62746593,1971.5,1970.7,0.40848085]
[1770992384514,3.62746593,1971.5,1970.7,1.13962641]
[1770992384826,3.62746593,1971.5,1970.8,0.73114556]
[1770992386224,3.62746593,1971.5,1970.8,0.70653583]
[1770992386827,3.62746593,1971.5,1970.9,1.85405583]
[1770992387028,3.62746593,1972.0,1971.2,3.40648062]
[1770992387228,3.62746593,1972.0,1971.3,1.85405583]
[1770992387429,3.62746593,1972.0,1971.2,3.40648062]
[1770992389025,3.62746593,1972.0,1971.3,5.26053645]
[1770992389427,3.62746593,1972.0,1971.3,1.85405583]
[1770992389830,3.62746593,1971.9,1971.1,1.85405583]
[1770992390030,3.62746593,1971.9,1971.0,3.66033062]
[1770992390928,3.62746593,1971.7,1971.0,0.25385]
[1770992391128,3.62746593,1971.7,1970.8,3.40648062]
[1770992391330,3.62746593,1971.7,1970.9,1.85405583]
[1770992391930,3.62746593,1971.5,1970.7,5.26556147]
[1770992394127,3.62746593,1971.5,1970.7,0.00502502]
[1770992394432,3.62746593,1971.5,1970.7,3.41150564]
[1770992394636,3.62746593,1971.5,1971.0,3.40648062]
[1770992394832,3.62746593,1971.5,1970.9,5.26053645]
[1770992398737,3.62746593,1971.5,1971.0,3.40648062]
[1770992399136,3.62746593,1971.5,1970.9,1.85405583]
[1770992399137,3.62746593,1971.5,1970.9,5.26053645]
[1770992400527,3.62746593,1971.5,1970.8,3.66037062]
[1770992400738,3.3206205,1971.3,1970.7,0.00502502]
[1770992400933,3.32491434,1971.3,1970.7,0.00502502]
[1770992401334,3.32491434,1971.3,1970.7,3.19401289]
[1770992401833,3.32491434,1971.3,1970.7,0.00502502]
[1770992403527,3.32491434,1971.3,1970.6,3.18898787]
[1770992403732,3.32491434,1971.3,1970.7,5.0430437]
[1770992404437,3.32491434,1971.3,1970.7,3.18898787]
[1770992404636,3.32491434,1971.3,1970.7,3.19306022]
[1770992405036,3.32491434,1971.3,1971.0,5.0430437]
[1770992405543,0.00429384,1971.3,1971.1,3.18898787]
[1770992410044,3.32491434,1971.3,1971.0,3.18898787]
[1770992411343,3.32491434,1971.3,1970.9,3.18898787]
[1770992411940,3.3206205,1971.5,1971.1,3.18898787]
[1770992413145,3.32469593,1971.5,1971.1,3.18898787]
[1770992414038,3.32469593,1971.5,1971.0,5.0430437]
[1770992414747,3.32469593,1971.5,1971.1,3.18898787]
[1770992415043,3.32469593,1971.5,1971.2,3.18898787]
[1770992415243,3.32469593,1971.5,1971.1,3.18898787]
[1770992415444,3.32469593,1971.5,1971.0,5.0430437]
[1770992416046,3.32469593,1971.5,1971.0,1.85405583]
[1770992416248,3.32469593,1971.5,1971.0,5.0430437]
[1770992416438,3.32469593,1971.5,1971.0,3.18898787]